fUST/lending_fUST_20260422
["ID","MTS","AMOUNT","RATE_DAILY","PERIOD"]
[420988665,1776867902446,500.0,0.00024657,120]
[420988666,1776867902681,500.0,0.00024657,120]
[420988667,1776867902915,500.0,0.00024657,120]
[420988668,1776867903143,500.0,0.00024657,120]
[420988669,1776867903374,500.0,0.00024657,120]
[420988670,1776867903606,500.0,0.00024657,120]
[420988671,1776867903845,500.0,0.00024657,120]
[420988672,1776867904076,500.0,0.00024657,120]
[420988673,1776867904315,500.0,0.00024657,120]
[420988674,1776867904564,500.0,0.00024657,120]
[420988675,1776867904800,500.0,0.00024657,120]
[420988676,1776867905037,500.0,0.00024657,120]
[420988677,1776867905272,500.0,0.00024657,120]
[420988678,1776867905514,500.0,0.00024657,120]
[420988679,1776867905745,500.0,0.00024657,120]
[420988680,1776867905978,500.0,0.00024657,120]
[420988681,1776867906209,500.0,0.00024657,120]
[420988682,1776867906390,1140.0,0.00023776,120]
[420988683,1776867906431,500.0,0.00024657,120]
[420988684,1776867906674,500.0,0.00024657,120]
[420988685,1776867906915,500.0,0.00024657,120]
[420988686,1776867907151,500.0,0.00024657,120]
[420988687,1776867908070,500.0,0.00024657,120]
[420988688,1776867908123,500.0,0.00024657,120]
[420988689,1776867908164,500.0,0.00024657,120]
[420988690,1776867908205,500.0,0.00024657,120]
[420988691,1776867908370,500.0,0.00024657,120]
[420988692,1776867908595,500.0,0.00024657,120]
[420988693,1776867908826,500.0,0.00024657,120]
[420988694,1776867909488,500.0,0.00024657,120]
[420988695,1776867909772,500.0,0.00024657,120]
[420988696,1776867910011,500.0,0.00024657,120]
[420988697,1776867910245,500.0,0.00024657,120]
[420988698,1776867910512,500.0,0.00024657,120]
[420988699,1776867910760,500.0,0.00024657,120]
[420988700,1776867910985,500.0,0.00024657,120]
[420988701,1776867911212,500.0,0.00024657,120]
[420988702,1776867911441,500.0,0.00024657,120]
[420988703,1776867911847,500.0,0.00024657,120]
[420988704,1776867912069,500.0,0.00024657,120]
[420988705,1776867912309,500.0,0.00024657,120]
[420988706,1776867912539,500.0,0.00024657,120]
[420988707,1776867912774,500.0,0.00024657,120]
[420988708,1776867912999,500.0,0.00024657,120]
[420988709,1776867913252,500.0,0.00024657,120]
[420988710,1776867913487,500.0,0.00024657,120]
[420988711,1776867913718,500.0,0.00024657,120]
[420988712,1776867913962,500.0,0.00024657,120]
[420988713,1776867914216,500.0,0.00024657,120]
[420988714,1776867914428,500.0,0.00024657,120]
[420988715,1776867914704,500.0,0.00024657,120]
[420988716,1776867914947,601.23653193,0.00024657,120]
[420988717,1776867928903,726.0,0.00022634,120]
[420988718,1776867930197,726.0,0.00023766,120]
[420988719,1776867956080,1495.27,0.00024657,120]
[420988720,1776867996102,1200.0,0.000135,120]
[420988721,1776867996275,750.0,0.00013905,120]
[420988722,1776867996432,300.0,0.0001431,120]
[420988723,1776867996642,150.0,0.00014715,120]
[420988724,1776867996796,150.0,0.0001512,120]
[420988728,1776868050876,200.0,0.00020558,120]
[420988747,1776868106881,1000.0,0.00024658,120]
[420988781,1776868110635,200.0,0.0002203,120]
[420988875,1776868232220,-5000.0,9.153e-05,10]
[420988877,1776868232231,-150.0,9.363e-05,2]
[420988879,1776868232241,-553.0,9.481e-05,2]
[420988880,1776868232251,-151.0,9.72e-05,2]
[420988881,1776868232260,-177.0,0.00011363,2]
[420988882,1776868232269,-204.0,0.00013363,2]
[420988883,1776868232279,-1000.0,0.00013699,2]
[420988884,1776868232288,-291.24637229,0.00014493,2]
[420988885,1776868232297,-435.42888432,0.00014519,2]
[420988886,1776868232307,-1800.0,0.00015,10]
[420988887,1776868232316,-231.0,0.00015363,2]
[420988888,1776868232327,-455.80029,0.0001599,2]
[420988889,1776868232336,-325.3447611,0.0001599,2]
[420988890,1776868232346,-151.0,0.0001599,2]
[420988891,1776868232355,-325.47,0.00016438,2]
[420988892,1776868232365,-325.48,0.00016438,2]
[420988893,1776868232374,-160.0,0.000165,2]
[420988894,1776868232384,-160.0,0.000165,2]
[420988895,1776868232393,-500.0,0.00016573,2]
[420988896,1776868232403,-512.30708347,0.00016573,2]
[420988897,1776868232412,-500.0,0.00016573,2]
[420988898,1776868232422,-1743.03504496,0.00016699,2]
[420988899,1776868232431,-500.0,0.00016799,2]
[420988900,1776868232440,-500.0,0.00016799,3]
[420988901,1776868232450,-500.0,0.00016799,4]
[420988902,1776868232460,-500.0,0.00016799,5]
[420988903,1776868232469,-500.0,0.00016799,6]
[420988904,1776868232479,-500.0,0.00016799,7]
[420988905,1776868232488,-500.0,0.00016799,8]
[420988906,1776868232497,-370.38367369,0.00016799,9]
[420988909,1776868233120,436.0,0.00022629,120]
[420988910,1776868233788,798.0,0.00023769,120]
[420988911,1776868234450,436.0,0.0002376,120]
[420988924,1776868238952,-202.64543136,9.061e-05,10]
[420988925,1776868238962,-129.61632631,0.00016799,9]
[420988926,1776868238971,-500.0,0.00016799,10]
[420988927,1776868238981,-172.44577012,0.00016799,11]
[420988931,1776868240261,1032.0,0.00024649,120]
[420988935,1776868240909,-327.55422988,0.00016799,11]
[420988936,1776868240919,-500.0,0.00016799,12]
[420988937,1776868240928,-500.0,0.00016799,13]
[420988938,1776868240939,-500.0,0.00016799,14]
[420988939,1776868240948,-500.0,0.00016799,15]
[420988940,1776868240958,-92.12445735,0.00016799,16]
[420988969,1776868247191,-5000.0,0.00016632,10]
[420988971,1776868247201,-407.87554265,0.00016799,16]
[420988973,1776868247211,-500.0,0.00016799,17]
[420988975,1776868247220,-500.0,0.00016799,18]
[420988976,1776868247230,-500.0,0.00016799,19]
[420988977,1776868247240,-500.0,0.00016799,20]
[420988978,1776868247250,-500.0,0.00016799,21]
[420988979,1776868247260,-500.0,0.00016799,21]
[420988980,1776868247269,-500.0,0.00016799,21]
[420988981,1776868247279,-500.0,0.00016799,21]
[420988982,1776868247289,-500.0,0.00016799,21]
[420988983,1776868247299,-500.0,0.00016799,21]
[420988985,1776868247308,-500.0,0.00016799,21]
[420988986,1776868247318,-500.0,0.00016799,21]
[420988987,1776868247328,-500.0,0.00016799,21]
[420988988,1776868247338,-500.0,0.00016799,21]
[420988989,1776868247346,-500.0,0.00016799,21]
[420988990,1776868247355,-500.0,0.00016799,21]
[420988992,1776868247365,-500.0,0.00016799,21]
[420988993,1776868247374,-152.65,0.00016799,21]
[420988994,1776868247384,-4020.7174108,0.000168,2]
[420988995,1776868247393,-765.93296671,0.000168,2]
[420988998,1776868247801,-557.18407237,0.000168,2]
[420989004,1776868253707,1046.68,0.00024649,120]
[420989005,1776868272681,2000.0,0.00024657,120]
[420989032,1776868340333,-2544.024864,0.00015261,10]
[420989033,1776868410500,200.0,0.00023186,120]
[420989034,1776868426755,1000.0,0.00024658,120]
[420989035,1776868428026,500.0,0.00024657,120]
[420989036,1776868456437,1267.8666537,0.00024649,120]
[420989037,1776868524253,559.0,0.00023507,120]
[420989038,1776868530912,200.0,0.00023424,120]
[420989039,1776868532451,261.0,0.00022351,120]
[420989040,1776868533715,261.0,0.00023469,120]
[420989041,1776868535138,261.0,0.00024642,120]
[420989042,1776868553085,732.68,0.00024649,120]
[420989043,1776868591544,200.0,0.00024172,120]
[420989044,1776868637429,200.0,0.000246,120]
[420989045,1776868650755,200.0,0.0002451,120]
[420989046,1776868747430,1000.0,0.00024658,120]
[420989049,1776868770512,200.0,0.00024323,120]
[420989050,1776868811666,391.0,0.00023386,120]
[420989051,1776868812958,391.0,0.00024555,120]
[420989052,1776868830976,200.0,0.00023717,120]
[420989053,1776868833371,174.0,0.00022234,120]
[420989054,1776868834610,174.0,0.00023346,120]
[420989055,1776868835875,174.0,0.00024513,120]
[420989056,1776868856785,512.88,0.00024649,120]
[420989057,1776868950525,200.0,0.00024563,120]
[420989058,1776869060637,1000.0,0.00024658,120]
[420989059,1776869076478,500.0,0.00024657,120]
[420989060,1776869076733,500.0,0.00024657,120]
[420989061,1776869077178,500.0,0.00024657,120]
[420989062,1776869077409,500.0,0.00024657,120]
[420989063,1776869114294,274.0,0.00023461,120]
[420989064,1776869115991,274.0,0.00024634,120]
[420989065,1776869133429,175.0,0.00022335,120]
[420989066,1776869134738,175.0,0.00023451,120]
[420989067,1776869136101,175.0,0.00024624,120]
[420989069,1776869155015,359.01,0.00024657,120]
[420989073,1776869190757,200.0,0.00024447,120]
[420989077,1776869250598,200.0,0.00024559,120]
[420989084,1776869369626,1000.0,0.00024658,120]
[420989090,1776869414797,192.0,0.00023463,120]
[420989091,1776869416130,192.0,0.00024636,120]
[420989092,1776869431145,200.0,0.00023999,120]
[420989097,1776869437750,176.0,0.00022333,120]
[420989120,1776869438682,-250.5264,9.159e-05,10]
[420989126,1776869438737,-4749.4736,9.159e-05,10]
[420989128,1776869438747,-300.0,9.345e-05,8]
[420989130,1776869438756,-300.0,9.345e-05,13]
[420989132,1776869438766,-150.0,9.345e-05,2]
[420989134,1776869438775,-177.0,0.00011345,2]
[420989136,1776869438784,-714.16552269,0.00011413,2]
[420989138,1776869438795,-1200.0,0.00011511,2]
[420989140,1776869438805,-1363.85341875,0.00011513,2]
[420989142,1776869438814,-300.0,0.00011606,2]
[420989144,1776869438823,-300.0,0.00011606,2]
[420989146,1776869438834,-300.0,0.00011606,2]
[420989148,1776869438843,-2013.5413148,0.00011613,2]
[420989150,1776869438852,-2339.93994151,0.00011713,2]
[420989152,1776869438862,-2663.22921085,0.00011813,2]
[420989155,1776869438871,-2760.21214501,0.00011913,2]
[420989157,1776869438881,-300.0,0.00011946,2]
[420989159,1776869438890,-300.0,0.00011946,2]
[420989161,1776869438899,-300.0,0.00011946,2]
[420989163,1776869438909,-300.0,0.00011946,2]
[420989164,1776869438918,-300.0,0.00011946,2]
[420989166,1776869438928,-300.0,0.00011946,2]
[420989168,1776869438937,-300.0,0.00011946,2]
[420989170,1776869438946,-300.0,0.00011946,2]
[420989172,1776869438955,-300.0,0.00011946,2]
[420989174,1776869438965,-300.0,0.00011946,2]
[420989176,1776869438974,-300.0,0.00011946,2]
[420989178,1776869438983,-300.0,0.00011946,2]
[420989180,1776869438992,-300.0,0.00011946,2]
[420989182,1776869439002,-300.0,0.00011946,2]
[420989184,1776869439012,-300.0,0.00011946,2]
[420989186,1776869439021,-3180.48434865,0.00012013,2]
[420989188,1776869439031,-600.0,0.00012184,2]
[420989190,1776869439040,-3962.60500296,0.00012313,2]
[420989192,1776869439051,-4021.02875591,0.00012413,2]
[420989194,1776869439060,-209.43172267,0.00012603,2]
[420989196,1776869439070,-4442.4269584,0.00012613,2]
[420989198,1776869439079,-1680.0,0.00012662,2]
[420989200,1776869439090,-347.0,0.00012746,2]
[420989202,1776869439099,-420.0,0.00012746,2]
[420989204,1776869439108,-300.0,0.00012746,2]
[420989206,1776869439118,-528.36890091,0.00012755,2]
[420989208,1776869439127,-500.0,0.00012827,2]
[420989209,1776869439137,-354.24100947,0.00012829,2]
[420989211,1776869439146,-500.0,0.00012829,2]
[420989213,1776869439155,-500.0,0.00012829,2]
[420989215,1776869439165,-500.0,0.00012829,2]
[420989217,1776869439174,-390.76914765,0.00012829,2]
[420989219,1776869439184,-500.0,0.00012829,2]
[420989221,1776869439193,-500.0,0.00012829,2]
[420989223,1776869439202,-500.0,0.00012829,2]
[420989225,1776869439212,-500.0,0.00012829,2]
[420989227,1776869439221,-500.0,0.00012829,2]
[420989229,1776869439230,-500.0,0.00012829,2]
[420989231,1776869439239,-500.0,0.00012829,2]
[420989233,1776869439248,-500.0,0.00012829,2]
[420989235,1776869439258,-500.0,0.00012829,2]
[420989237,1776869439268,-500.0,0.00012829,2]
[420989238,1776869439278,-500.0,0.00012829,2]
[420989240,1776869439287,-500.0,0.00012829,2]
[420989241,1776869439296,-500.0,0.00012829,2]
[420989243,1776869439305,-500.0,0.00012829,2]
[420989245,1776869439315,-500.0,0.00012829,2]
[420989247,1776869439324,-492.64129214,0.00012829,2]
[420989249,1776869439334,-500.0,0.00012829,2]
[420989251,1776869439344,-500.0,0.00012829,2]
[420989253,1776869439353,-500.0,0.00012829,2]
[420989255,1776869439362,-500.0,0.00012829,2]
[420989257,1776869439371,-369.95702594,0.00012829,2]
[420989259,1776869439380,-153.428406,0.0001283,2]
[420989261,1776869439390,-151.0,0.0001283,2]
[420989263,1776869439399,-151.0,0.0001283,2]
[420989265,1776869439409,-32892.90955198,0.0001283,2]
[420989267,1776869439418,-209.43172267,0.00012855,7]
[420989269,1776869439427,-500.0,0.00013101,2]
[420989271,1776869439437,-209.43172267,0.00013233,14]
[420989273,1776869439446,-204.0,0.00013345,2]
[420989275,1776869439455,-500.0,0.00013375,2]
[420989277,1776869439465,-720.0,0.00013402,2]
[420989279,1776869439474,-500.0,0.00013649,2]
[420989296,1776869439669,-500.0,0.0001368,2]
[420989297,1776869439679,-1000.0,0.00013698,2]
[420989298,1776869439688,-848.1629485,0.00013698,2]
[420989299,1776869439698,-500.0,0.00013698,2]
[420989300,1776869439707,-222.308037,0.00013699,2]
[420989301,1776869439716,-1000.0,0.00013699,2]
[420989302,1776869439726,-243.051005,0.00013699,2]
[420989303,1776869439735,-243.051005,0.00013699,2]
[420989304,1776869439744,-243.051005,0.00013699,2]
[420989305,1776869439753,-243.051005,0.00013699,2]
[420989306,1776869439763,-1000.0,0.00013699,2]
[420989307,1776869439772,-159.79918719,0.00013712,2]
[420989308,1776869439781,-500.0,0.00013923,2]
[420989309,1776869439791,-977.0,0.00013928,2]
[420989310,1776869439801,-587.0,0.00013998,2]
[420989311,1776869439810,-528.36890091,0.00014004,2]
[420989312,1776869439819,-291.38989044,0.00014197,2]
[420989313,1776869439829,-1000.0,0.00014228,2]
[420989314,1776869439838,-159.79918719,0.00014534,2]
[420989315,1776869439847,-5436.82333836,0.00014654,2]
[420989316,1776869439856,-864.0,0.00014743,2]
[420989317,1776869439866,-243.051005,0.00014743,2]
[420989318,1776869439875,-243.051005,0.00014743,2]
[420989319,1776869439884,-243.051005,0.00014743,2]
[420989320,1776869439893,-243.051005,0.00014743,2]
[420989321,1776869439903,-600.06716233,0.00014776,2]
[420989322,1776869439912,-151.0,0.00014776,2]
[420989323,1776869439921,-151.0,0.00014776,2]
[420989324,1776869439930,-500.0,0.00014907,2]
[420989325,1776869439940,-191.97146351,0.0001499,2]
[420989326,1776869439949,-223.32722783,0.00015161,2]
[420989327,1776869439958,-500.0,0.00015227,2]
[420989328,1776869439967,-528.36890091,0.00015254,2]
[420989329,1776869439976,-512.32646561,0.00015273,2]
[420989330,1776869439986,-500.0,0.00015273,2]
[420989331,1776869439995,-231.0,0.00015345,2]
[420989332,1776869440005,-159.79918719,0.00015356,2]
[420989333,1776869440014,-313.0,0.00015373,2]
[420989334,1776869440024,-186.91,0.00015415,2]
[420989335,1776869440033,-1000.0,0.00015455,2]
[420989336,1776869440043,-3990.13707095,0.00015633,7]
[420989337,1776869440052,-160.0,0.00015651,2]
[420989338,1776869440062,-233.64,0.00015765,2]
[420989339,1776869440072,-1000.0,0.00015775,2]
[420989340,1776869440082,-1000.0,0.00015821,2]
[420989341,1776869440092,-262.560586,0.0001586,2]
[420989342,1776869440102,-262.560586,0.0001586,2]
[420989343,1776869440112,-262.560586,0.0001586,2]
[420989344,1776869440121,-262.560586,0.0001586,2]
[420989346,1776869440131,-5857.36669192,0.00015861,3]
[420989347,1776869440140,-243.051005,0.00015861,2]
[420989350,1776869440149,-243.051005,0.00015861,2]
[420989352,1776869440158,-243.051005,0.00015861,2]
[420989353,1776869440167,-243.051005,0.00015861,2]
[420989355,1776869440176,-151.0,0.00015991,2]
[420989358,1776869440186,-196.27,0.00015999,2]
[420989360,1776869440195,-1500.0,0.00016003,2]
[420989361,1776869440203,-151.0,0.0001601,2]
[420989363,1776869440213,-502.22319693,0.00016076,2]
[420989365,1776869440224,-280.37,0.00016115,2]
[420989367,1776869440233,-1000.0,0.00016217,2]
[420989369,1776869440243,-1500.0,0.00016323,2]
[420989371,1776869440252,-500.0,0.00016356,2]
[420989373,1776869440262,-340.65251441,0.00016356,2]
[420989375,1776869440271,-500.0,0.00016356,2]
[420989377,1776869440280,-500.0,0.00016356,2]
[420989379,1776869440289,-160.0,0.00016357,2]
[420989381,1776869440298,-3381.286588,0.00016357,2]
[420989383,1776869440307,-6602.573176,0.00016357,2]
[420989385,1776869440317,-205.860711,0.00016357,7]
[420989387,1776869440325,-159.95420742,0.00016369,2]
[420989389,1776869440335,-500.0,0.00016463,2]
[420989391,1776869440344,-6033.61957192,0.00016464,3]
[420989392,1776869440354,-262.560586,0.00016464,2]
[420989394,1776869440363,-262.560586,0.00016464,2]
[420989396,1776869440372,-262.560586,0.00016464,2]
[420989398,1776869440382,-262.560586,0.00016464,2]
[420989400,1776869440391,-151.0,0.00016464,2]
[420989402,1776869440400,-185.618335,0.00016464,2]
[420989404,1776869440410,-327.1,0.00016465,2]
[420989406,1776869440419,-151.0,0.00016482,2]
[420989408,1776869440428,-528.36890091,0.00016503,2]
[420989410,1776869440437,-160.0,0.00016562,2]
[420989412,1776869440446,-212.383395,0.00016562,2]
[420989414,1776869440456,-264.766791,0.00016562,2]
[420989416,1776869440464,-160.0,0.00016562,7]
[420989418,1776869440473,-213.629038,0.00016562,7]
[420989419,1776869440483,-267.258077,0.00016562,7]
[420989421,1776869440492,-243.051005,0.00016562,2]
[420989423,1776869440501,-243.051005,0.00016562,2]
[420989425,1776869440510,-243.051005,0.00016562,2]
[420989427,1776869440520,-243.051005,0.00016562,2]
[420989429,1776869440530,-1097.3230524,0.00016585,2]
[420989431,1776869440539,-2936.3513124,0.00016585,2]
[420989433,1776869440548,-1000.0,0.00016598,2]
[420989435,1776869440557,-314.5,0.000166,2]
[420989437,1776869440566,-18826.1922581,0.00016691,2]
[420989439,1776869440575,-262.560586,0.00016691,2]
[420989441,1776869440584,-262.560586,0.00016691,2]
[420989443,1776869440593,-262.560586,0.00016691,2]
[420989445,1776869440602,-262.560586,0.00016691,2]
[420989447,1776869440611,-151.0,0.00016691,2]
[420989449,1776869440621,-243.051005,0.00016691,2]
[420989451,1776869440630,-243.051005,0.00016691,2]
[420989453,1776869440639,-243.051005,0.00016691,2]
[420989455,1776869440650,-243.051005,0.00016691,2]
[420989457,1776869440659,-506.51345038,0.00016773,2]
[420989459,1776869440668,-180.42599146,0.00016799,2]
[420989461,1776869440678,-721.70396583,0.00016799,2]
[420989463,1776869440687,-1623.83392312,0.00016799,2]
[420989465,1776869440696,-262.560586,0.00016799,2]
[420989467,1776869440705,-262.560586,0.00016799,2]
[420989469,1776869440714,-262.560586,0.00016799,2]
[420989471,1776869440726,-262.560586,0.00016799,2]
[420989473,1776869440735,-562.42748831,0.00016799,2]
[420989475,1776869440745,-151.0,0.00016799,2]
[420989477,1776869440755,-299.18,0.00016799,30]
[420989479,1776869440765,-2886.81586333,0.00016799,2]
[420989481,1776869440774,-3128.9575316,0.000168,2]
[420989483,1776869440784,-1190.0,0.000168,2]
[420989485,1776869440793,-262.560586,0.000168,2]
[420989486,1776869440803,-262.560586,0.000168,2]
[420989488,1776869440812,-262.560586,0.000168,2]
[420989490,1776869440821,-262.56058788,0.000168,2]
[420989492,1776869440831,-325.344761,0.00016832,2]
[420989494,1776869440842,-3990.13707095,0.0001685,7]
[420989496,1776869440857,-537.6845,0.00016865,2]
[420989498,1776869440875,-232.34705367,0.00016865,2]
[420989500,1776869440891,-537.6845,0.00016865,2]
[420989502,1776869440901,-168.42020653,0.00016865,2]
[420989504,1776869440911,-2150.738,0.00016865,2]
[420989505,1776869440920,-177.48501553,0.00016886,2]
[420989507,1776869440931,-25955.02318681,0.000169,2]
[420989512,1776869440963,-608.24692022,0.000169,2]
[420989515,1776869440989,-500.0,0.00016356,2]
[420989517,1776869440999,-23436.72989297,0.000169,2]
[420989519,1776869441009,-557.5788265,0.0001692,2]
[420989521,1776869441018,-1385.76603,0.00016945,2]
[420989523,1776869441028,-578.20924308,0.00016975,2]
[420989525,1776869441037,-1363.756,0.00016994,2]
[420989527,1776869441046,-599.60298507,0.0001703,2]
[420989529,1776869441056,-1190.0,0.00017074,2]
[420989530,1776869441065,-621.78829552,0.00017085,2]
[420989532,1776869441074,-644.79446246,0.0001714,2]
[420989534,1776869441084,-4610.845347,0.00017175,2]
[420989536,1776869441093,-668.65185757,0.00017195,2]
[420989538,1776869441103,-159.79918719,0.00017196,7]
[420989540,1776869441113,-418.3,0.00017239,2]
[420989542,1776869441123,-693.3919763,0.0001725,2]
[420989544,1776869441133,-719.04747942,0.00017305,2]
[420989546,1776869441143,-2249.70995322,0.00017323,2]
[420989548,1776869441154,-258.0,0.00017345,2]
[420989550,1776869441164,-1190.0,0.00017348,2]
[420989552,1776869441174,-3308.3171284,0.00017348,2]
[420989554,1776869441184,-745.65223616,0.0001736,2]
[420989556,1776869441194,-434.420581,0.0001739,2]
[420989558,1776869441203,-291.312325,0.0001739,7]
[420989560,1776869441213,-640.12772815,0.00017413,2]
[420989561,1776869441222,-2230.315306,0.00017413,2]
[420989563,1776869441233,-773.2413689,0.00017415,2]
[420989565,1776869441243,-500.0,0.00017416,5]
[420989567,1776869441252,-927.38192032,0.00017424,2]
[420989569,1776869441262,-418.3,0.00017463,2]
[420989571,1776869441271,-537.68450001,0.0001747,2]
[420989573,1776869441282,-791.0,0.000175,2]
[420989575,1776869441292,-551.40285473,0.00017538,14]
[420989577,1776869441301,-294.642,0.00017544,2]
[420989579,1776869441313,-160.0,0.000176,5]
[420989581,1776869441322,-160.0,0.000176,4]
[420989583,1776869441334,-164.26033187,0.000176,3]
[420989585,1776869441343,-1190.0,0.00017622,2]
[420989587,1776869441353,-325.344761,0.00017654,2]
[420989589,1776869441362,-1385.76603,0.00017658,2]
[420989591,1776869441372,-418.3,0.00017686,2]
[420989593,1776869441382,-4510.64978646,0.00017698,2]
[420989595,1776869441392,-551.40285473,0.00017728,16]
[420989597,1776869441402,-325.3724333,0.00017737,2]
[420989599,1776869441411,-528.36890091,0.00017752,2]
[420989601,1776869441421,-1000.0,0.00017838,2]
[420989603,1776869441430,-244.0,0.00017838,2]
[420989605,1776869441440,-151.5,0.00017852,2]
[420989607,1776869441450,-500.0,0.00017852,2]
[420989609,1776869441459,-500.0,0.00017852,2]
[420989611,1776869441468,-500.0,0.00017852,2]
[420989613,1776869441477,-500.0,0.00017852,2]
[420989615,1776869441487,-500.0,0.00017852,2]
[420989617,1776869441496,-500.0,0.00017852,2]
[420989619,1776869441506,-500.0,0.00017852,2]
[420989621,1776869441515,-500.0,0.00017852,2]
[420989623,1776869441525,-500.0,0.00017852,2]
[420989624,1776869441536,-500.0,0.00017852,2]
[420989626,1776869441546,-500.0,0.00017852,2]
[420989628,1776869441556,-500.0,0.00017852,2]
[420989630,1776869441566,-500.0,0.00017852,2]
[420989631,1776869441576,-500.0,0.00017852,2]
[420989633,1776869441585,-500.0,0.00017852,2]
[420989634,1776869441595,-500.0,0.00017852,2]
[420989636,1776869441605,-500.0,0.00017852,2]
[420989637,1776869441614,-369.94283977,0.00017852,2]
[420989639,1776869441625,-500.0,0.00017852,2]
[420989640,1776869441635,-397.5876028,0.00017852,2]
[420989642,1776869441645,-500.0,0.00017852,2]
[420989643,1776869441654,-500.0,0.00017852,2]
[420989644,1776869441664,-239.46137025,0.00017852,2]
[420989645,1776869441674,-151.5,0.00017852,2]
[420989646,1776869441684,-151.5,0.00017852,2]
[420989647,1776869441694,-177.01707306,0.00017852,2]
[420989648,1776869441705,-500.0,0.00017852,2]
[420989649,1776869441715,-500.0,0.00017852,2]
[420989650,1776869441726,-581.04516606,0.00017852,2]
[420989651,1776869441736,-500.0,0.00017852,2]
[420989652,1776869441746,-500.0,0.00017852,2]
[420989655,1776869441882,-500.0,0.00017852,2]
[420989656,1776869441894,-500.0,0.00017852,2]
[420989657,1776869441903,-500.0,0.00017852,2]
[420989658,1776869441914,-500.0,0.00017852,2]
[420989659,1776869441923,-504.53920386,0.00017852,2]
[420989660,1776869441932,-586.0,0.00017852,2]
[420989661,1776869441943,-586.0,0.00017852,2]
[420989662,1776869441952,-586.0,0.00017852,2]
[420989663,1776869441962,-586.0,0.00017852,2]
[420989664,1776869441973,-586.0,0.00017852,2]
[420989665,1776869441982,-586.0,0.00017852,2]
[420989666,1776869441992,-586.0,0.00017852,2]
[420989667,1776869442001,-151.5,0.00017852,2]
[420989668,1776869442011,-586.0,0.00017852,2]
[420989669,1776869442021,-151.5,0.00017852,2]
[420989670,1776869442030,-151.5,0.00017852,2]
[420989671,1776869442040,-586.0,0.00017852,2]
[420989672,1776869442050,-151.5,0.00017852,2]
[420989673,1776869442060,-294.0,0.00017852,2]
[420989674,1776869442070,-586.0,0.00017852,2]
[420989675,1776869442079,-586.0,0.00017852,2]
[420989676,1776869442088,-586.0,0.00017852,2]
[420989677,1776869442097,-586.0,0.00017852,2]
[420989678,1776869442107,-586.0,0.00017852,2]
[420989679,1776869442116,-586.0,0.00017852,2]
[420989680,1776869442126,-586.0,0.00017852,2]
[420989681,1776869442135,-586.0,0.00017852,2]
[420989682,1776869442145,-586.0,0.00017852,2]
[420989683,1776869442154,-586.0,0.00017852,2]
[420989684,1776869442164,-586.0,0.00017852,2]
[420989685,1776869442173,-586.0,0.00017852,2]
[420989686,1776869442183,-586.0,0.00017852,2]
[420989687,1776869442196,-586.0,0.00017852,2]
[420989688,1776869442205,-593.52405198,0.00017852,2]